Cogmind - Beta 14 @@@ ROGUE MODE // 2024.11.09 @ 23:26:11 Player: KTG-V3 Result: Self-destructed Performance ------------- Evolutions (1) 500 Regions Visited (5) 1000 Robots Destroyed (100) 500 Value Destroyed (2484) 2484 Prototype IDs (8) 160 Alien Tech Used (0) 0 Bonus (36) 36 TOTAL SCORE: 4680 Bonus ------- High Alert Combat Kills 11 Follower Combat Kills 25 Cogmind --------- Core Integrity 109/400 Matter 300/300 Energy 265/265 System Corruption 1% Temperature Cool (0) Movement Rolling (145) Ox3 Location -9/Recycling Parts ------- > --- POWER (1) -------- Reinforced Ion Engine > --- PROPULSION (2) --- Light Treads Compact Wheel > --- UTILITY (4) ------ High-capacity Storage Unit Seismic Detector > --- WEAPON (2) ------- Improved Light Cannon Rocket Launcher > --- INVENTORY (20) --- Cooled Ion Engine Light Treads Light Treads Light Treads Light Treads Overtuned Titanium Leg Compact Wheel Cooling System Huge Storage Unit Hacking Suite Hacking Suite Advanced Beam Cannon Advanced Beam Cannon Improved Assault Rifle Improved Light Cannon Grenade Launcher Plasma Cutter Peak State ------------ > --- POWER ------------ Heavy Ion Engine > --- PROPULSION ------- Light Treads Light Treads > --- UTILITY ---------- Cooling System High-capacity Storage Unit Seismic Detector Light Armor Plating > --- WEAPON ----------- Advanced Beam Cannon Advanced Beam Cannon > --- INVENTORY -------- Heavy Ion Engine Heavy Ion Engine Light Treads Light Treads Light Treads Light Treads Compact Wheel Compact Wheel Heat Sink Experimental Sensor Array Light Armor Plating Hacking Suite Hacking Suite Light EM Pulse Cannon Advanced Beam Cannon Advanced Beam Cannon Improved Light Cannon Improved Light Cannon Grenade Launcher Rocket Launcher [Rating: 20] Favorites ----------- Power Ion Engine Engine Ion Engine Propulsion Light Treads Treads Light Treads Wheel Compact Wheel Utility High-capacity Storage Unit Device Seismic Detector Storage High-capacity Storage Unit Processor Transport Network Coupler Protection Medium Armor Plating Weapon Advanced Beam Cannon Energy Gun Improved Medium Laser Energy Cannon Advanced Beam Cannon Ballistic Gun Assault Rifle Ballistic Cannon Improved Light Cannon Launcher Grenade Launcher Impact Weapon Mace Build | -11 -10 -10 -9 -9 -9 ------- Run | Yrd Mat Min Mat Sto Rec Slots Evolved 2 | . . . 2 . . Power . | . . . . . . Propulsion . | . . . . . . Utility 2 | . . . 2 . . Weapon . | . . . . . . Parts Attached 79 | 8 24 5 14 21 7 Power 7 | 1 2 . 3 1 . Engine 7 | 1 2 . 3 1 . Core . | . . . . . . Reactor . | . . . . . . Propulsion 13 | 2 1 . 4 3 3 Treads 12 | 2 1 . 4 3 2 Leg . | . . . . . . Wheel 1 | . . . . . 1 Hover . | . . . . . . Flight . | . . . . . . Utility 27 | 3 12 2 7 2 1 Device 20 | 2 9 2 6 . 1 Storage 3 | 1 2 . . . . Processor 1 | . 1 . . . . Hackware . | . . . . . . Protection 3 | . . . 1 2 . Artifact . | . . . . . . Weapon 32 | 2 9 3 . 15 3 Energy Gun 4 | 1 2 . . 1 . Energy Cannon 14 | . 4 2 . 8 . Ballistic Gun 3 | 1 1 . . 1 . Ballistic Cannon 2 | . . . . . 2 Launcher 8 | . 2 1 . 4 1 Special Weapon . | . . . . . . Impact Weapon 1 | . . . . 1 . Slashing Weapon . | . . . . . . Piercing Weapon . | . . . . . . Special Melee Weapon . | . . . . . . Unidentified Prototypes 5 | . 1 . 2 2 . Parts Lost 7 | . . . . 1 6 Power . | . . . . . . Propulsion 2 | . . . . . 2 Utility 3 | . . . . 1 2 Weapon 2 | . . . . . 2 Highest Loss Streak 6 | . . . . 1 6 To Critical Strikes . | . . . . . . Average Slot Usage (%) 99 | . 99 100 98 99 97 Engine 12 | . 14 14 11 11 11 Treads 24 | . 27 28 21 22 20 Device 17 | . 14 14 21 22 20 Storage 12 | . 14 14 11 11 11 Protection 5 | . . . 10 11 9 Energy Gun 5 | . 10 . . 3 9 Energy Cannon 16 | . 6 27 22 18 9 Ballistic Gun 2 | . 10 . . . . Peak Build Rating 20 | 7 14 15 20 19 19 Average Rating 15 | 5 9 14 18 18 18 On Entrance 12 | . 7 14 15 19 19 Naked Turns . | . . . . . . Heaviest Build 68 | 12 54 54 63 68 67 Greatest Support 40 | 40 40 40 40 40 40 Greatest Overweight (x) 3 | . 1 1 1 1 3 Average Overweight (x) . | . . 1 1 1 1 Largest Inventory Capacity 20 | 8 20 20 20 20 20 Average Capacity 18 | 7 16 20 20 20 20 Most Carried 20 | 8 20 20 20 20 20 Average Carried 18 | 4 14 20 19 19 19 Final Capacity 20 | 8 20 20 20 20 20 Final Carried 20 | 8 20 20 20 20 17 Class Distribution -------------------- 76% | Mutant 23% | Scavenger-Mutant Dominant Class ---------------- Mutant | -10/Materials Mutant | -10/Mines Mutant | -9/Materials Scavenger-Mutant | -9/Storage Scavenger-Mutant | -9/Recycling Resources | -11 -10 -10 -9 -9 -9 ----------- Run | Yrd Mat Min Mat Sto Rec Matter Collected 1613 | 293 552 60 140 299 269 Remotely 128 | 128 . . . . . Salvage Created 3669 | 72 811 323 782 996 685 Parts 224 | 5 64 25 48 55 27 Haulers Intercepted 6 | . 2 . 2 2 . Recyclers Shooed 4 | . . . 1 2 1 Parts Field Recycled . | . . . . . . Retrieved Matter . | . . . . . . Parts Self-Destructed . | . . . . . . Prevented . | . . . . . . Kills | -11 -10 -10 -9 -9 -9 ------- Run | Yrd Mat Min Mat Sto Rec Combat Hostiles Destroyed 61 | . 17 8 11 19 6 Guns 14 | . 12 . . 2 . Cannons 32 | . 2 6 11 7 6 AOE 15 | . 3 2 . 10 . Classes Destroyed 16 | 2 6 . 1 5 2 Worker 7 | . 2 4 1 . . Builder 2 | . . . . 1 1 Tunneler 4 | 1 1 2 . . . Hauler 6 | . 2 . 2 2 . Recycler 10 | 1 . 1 1 3 4 Mechanic 1 | . . . . 1 . Operator 2 | . 2 . . . . Watcher 7 | . 3 . 3 1 . Swarmer 11 | . 3 6 . 2 . Grunt 30 | . 14 2 5 9 . Brawler 2 | . . . . 2 . Duelist 1 | . . . . 1 . Protector 1 | . . . . 1 . Sentry 13 | . . . 6 4 3 Scientist 2 | . . . . . 2 Scrapper 3 | . . . . . 3 Best Kill Streak 11 | 1 4 4 2 11 5 Combat Bots Only 9 | . 3 3 2 9 2 Max Kills in Single Turn 4 | 1 3 3 2 4 1 Gunslinging . | . . . . . . Exploded 4 | . 2 2 . 4 . Melee . | . . . . . . Uniques/NPCs Destroyed . | . . . . . . Combat | -11 -10 -10 -9 -9 -9 -------- Run | Yrd Mat Min Mat Sto Rec Hostile Shots Fired 207 | . 51 28 24 53 51 Missed 55 | . 14 10 9 13 9 Damage Taken 2506 | . 490 170 266 632 948 Core 379 | . 71 17 39 64 188 Absorbed by Shields . | . . . . . . Regen/Repaired (Parts) 310 | . 109 . 201 . . Core Remaining (%) 82 | 100 . 64 . . . Volleys Fired 219 | 9 70 20 34 46 40 Largest 2 | 2 2 2 2 2 2 Hottest 136 | 60 136 136 136 136 124 Shots Fired 421 | 18 134 37 68 89 75 Gun 159 | 18 112 . . 9 20 Cannon 244 | . 19 36 68 71 50 Launcher 18 | . 3 1 . 9 5 Special . | . . . . . . Kinetic 96 | 9 56 . . . 31 Thermal 303 | 9 72 35 68 80 39 Explosive 18 | . 3 1 . 9 5 Electromagnetic 4 | . 3 1 . . . Robot Hit Streak 15 | 4 8 9 10 15 9 Robot Miss Streak 4 | 2 4 3 2 2 3 Penetration Max . | . . . . . . Secondary Targets 2 | . 2 . . . . Max Gunslinging Chain 1 | . 1 . . . . Shots Hit Robots 248 | 7 78 23 43 56 41 Core Hits 136 | 3 39 16 18 42 18 Critical Kills 1 | . . 1 . . . Critical Parts Destroyed . | . . . . . . Critical Strikes 7 | . 1 1 . 1 4 Burn 5 | . 1 . . 1 3 Meltdown 1 | . . 1 . . . Blast 1 | . . . . . 1 Melee Attacks 2 | . . . . 2 . Impact 2 | . . . . 2 . Slashing . | . . . . . . Piercing . | . . . . . . Sneak Attacks . | . . . . . . Combat Hostiles . | . . . . . . Follow-up Attacks . | . . . . . . Damage Inflicted 5763 | 97 1456 567 899 1917 827 Guns 1531 | 97 1044 . . 137 253 Cannons 3005 | . 81 471 899 984 570 Explosions 1223 | . 331 96 . 796 . Melee . | . . . . . . Ramming 4 | . . . . . 4 Kinetic 761 | 41 437 . . . 283 Thermal 3917 | 56 850 451 899 1121 540 Explosive 1061 | . 169 96 . 796 . Electromagnetic 20 | . . 20 . . . Impact . | . . . . . . Slashing . | . . . . . . Piercing . | . . . . . . Highest Corruption 1 | . . . . . 1 Average Corruption 1 | . . . . . 1 Corruption Purged . | . . . . . . Corruption Blocked . | . . . . . . Effects 14 | . . . . . 14 Matter Fused 6 | . . . . . 6 Heat Flow Errors 2 | . . . . . 2 Energy Discharges 1 | . . . . . 1 Data Loss (minor) 2 | . . . . . 2 Misfires 2 | . . . . . 2 Alerts 1 | . . . . . 1 Overload Shots . | . . . . . . Overflow Damage 113 | . 53 2 18 6 34 Projectiles 59 | . . 2 18 5 34 Explosions 54 | . 53 . . 1 . Melee . | . . . . . . Knockbacks 7 | . . . . . 7 Impact . | . . . . . . Kinetic 7 | . . . . . 7 Secondary . | . . . . . . Self-Inflicted Damage 131 | . 30 . . 101 . Shots 5 | . 1 . . 4 . Rammed 2 | . . . . . 2 Targets Rammed 2 | . . . . . 2 Kicked . | . . . . . . Crushed . | . . . . . . Highest Temperature 297 | . 141 240 297 168 163 Average Temperature 46 | . 31 75 62 38 45 Received Heat Transfer 1209 | . 243 18 117 264 567 Siege Activations . | . . . . . . Robots Corrupted . | . . . . . . Combat Hostiles . | . . . . . . Parts Fried . | . . . . . . Impact Corruptions . | . . . . . . Robots Melted 1 | . . 1 . . . Combat Hostiles . | . . . . . . Parts Melted 13 | . 2 2 2 4 3 Heat Transferred 7572 | 125 1756 814 1628 2146 1103 Parts Sabotaged . | . . . . . . Parts Stolen . | . . . . . . Parts Stripped . | . . . . . . Power Chain Reactions . | . . . . . . Alert | -11 -10 -10 -9 -9 -9 ------- Run | Yrd Mat Min Mat Sto Rec Peak Influence 434 | 10 328 155 222 434 154 Initial 139 | . 6 60 . 20 139 Average 97 | 5 114 39 60 288 67 Maximum Alert Level 2 | . 1 . 1 2 . Low Security (%) 84 | 100 83 100 96 11 100 Level 1 14 | . 16 . 3 79 . Level 2 1 | . . . . 8 . Level 3 . | . . . . . . Level 4 . | . . . . . . Level 5 . | . . . . . . High Security . | . . . . . . Max Security . | . . . . . . Squads Dispatched 8 | . 5 . . 3 . Investigation 4 | . 3 . . 1 . Extermination . | . . . . . . Reinforcement 2 | . 2 . . . . Assault 2 | . . . . 2 . Garrison . | . . . . . . Intercept . | . . . . . . Searches Triggered . | . . . . . . Construction Impeded . | . . . . . . Haulers Reinforced . | . . . . . . Active Scanning Responses . | . . . . . . Cargo Convoy Interrupts . | . . . . . . Stealth | -11 -10 -10 -9 -9 -9 --------- Run | Yrd Mat Min Mat Sto Rec Distress Signals 6 | . 4 . 2 . . Communications Jammed . | . . . . . . Distress Signals . | . . . . . . Times Spotted 91 | . 28 8 24 25 6 Peak Tracking Total 10 | . 4 3 3 10 4 Tactical Retreats 5 | . . . 4 1 . Traps | -11 -10 -10 -9 -9 -9 ------- Run | Yrd Mat Min Mat Sto Rec Traps Triggered 2 | . 1 . 1 . . Indirectly . | . . . . . . Trap Hack Attempts . | . . . . . . Triggered . | . . . . . . Disarmed . | . . . . . . Reprogrammed . | . . . . . . Reused . | . . . . . . Traps Extracted . | . . . . . . Installed . | . . . . . . Triggered . | . . . . . . Machines | -11 -10 -10 -9 -9 -9 ---------- Run | Yrd Mat Min Mat Sto Rec Machines Disabled 10 | . 3 1 . 5 1 Max in Single Turn 2 | . 2 1 . 1 1 Machines Repaired . | . . . . . . Machines Dismantled . | . . . . . . Machines Sabotaged . | . . . . . . Overloaded Fab Kills . | . . . . . . Hacking | -11 -10 -10 -9 -9 -9 --------- Run | Yrd Mat Min Mat Sto Rec Machines Accessed 34 | . 9 . 9 6 10 Terminals 23 | . 6 . 6 5 6 Fabricators . | . . . . . . Repair Stations 3 | . 1 . 1 1 . Recycling Units 7 | . 2 . 1 . 4 Scanalyzers 1 | . . . 1 . . Garrison Access . | . . . . . . Total Hacks 90 | . 28 . 28 12 22 Successful 44 | . 12 . 18 4 10 Failed 45 | . 15 . 10 8 12 Catastrophic 11 | . 4 . 4 . 3 Database Lockouts 1 | . 1 . . . . Manual 38 | . 15 . 10 4 9 Terminals 60 | . 23 . 17 11 9 Fabricators . | . . . . . . Repair Stations 8 | . 3 . 4 1 . Recycling Units 16 | . 2 . 1 . 13 Scanalyzers 6 | . . . 6 . . Garrison Access . | . . . . . . Terminal Hacks 19 | . 7 . 6 4 2 Part Schematic 1 | . 1 . . . . Robot Schematic 1 | . 1 . . . . Prototype ID Bank 1 | . 1 . . . . Open Door 2 | . . . . 2 . Branch Access Points 2 | . 1 . 1 . . Emergency Access Points 1 | . . . 1 . . Fabricator Index 1 | . . . . . 1 Alert Level 1 | . 1 . . . . Unreport Threat 3 | . 1 . 2 . . Locate Traps 4 | . 1 . 1 2 . Transport Status 2 | . . . 1 . 1 Fabricator Hacks . | . . . . . . Repair Station Hacks 6 | . 2 . 4 . . Scan Component 3 | . 1 . 2 . . Repair 3 | . 1 . 2 . . Recycling Unit Hacks 6 | . 2 . . . 4 Retrieve Components 6 | . 2 . . . 4 Scanalyzer 6 | . . . 6 . . Insert Component 3 | . . . 3 . . Analyze 3 | . . . 3 . . Garrison Access Hacks . | . . . . . . Unauthorized Hacks 7 | . 1 . 2 . 4 Terminals 3 | . 1 . 2 . . Assimilate 1 | . . . 1 . . Botnet 2 | . 1 . 1 . . Fabricators . | . . . . . . Repair Stations . | . . . . . . Recycling Units 4 | . . . . . 4 Tunnel 4 | . . . . . 4 Scanalyzers . | . . . . . . Garrison Access . | . . . . . . Data Cores Recovered . | . . . . . . Used . | . . . . . . Hacking Detections 26 | . 7 . 7 5 7 Full Trace Events 4 | . 2 . . 1 1 Feedback Events 1 | . . . . . 1 Corruption 1 | . . . . . 1 Feedback Blocked . | . . . . . . Robot Schematics Acquired 1 | . 1 . . . . Robots Built . | . . . . . . Authchips . | . . . . . . Time . | . . . . . . Total Robot Build Rating . | . . . . . . Part Schematics Acquired 4 | . 1 . 3 . . Parts Built . | . . . . . . Authchips . | . . . . . . Time . | . . . . . . Total Part Build Rating . | . . . . . . Parts Repaired 3 | . 1 . 2 . . Time 78 | . 26 . 52 . . Parts Recycled . | . . . . . . Recycled Matter . | . . . . . . Retrieved Matter . | . . . . . . Retrieved Components 26 | . 7 . . . 19 Parts Scanalyzed 3 | . . . 3 . . Part Schematics Acquired 3 | . . . 3 . . Parts Damaged . | . . . . . . Bothacking | -11 -10 -10 -9 -9 -9 ------------ Run | Yrd Mat Min Mat Sto Rec Used RIF Installer . | . . . . . . Robots Hacked . | . . . . . . Non-combat . | . . . . . . Combat . | . . . . . . Robot Hacks Applied . | . . . . . . Relay Couplers Released . | . . . . . . Fabnet Peak Effective % . | . . . . . . Robots Rewired . | . . . . . . Allies Hacked . | . . . . . . Hacks Repelled . | . . . . . . Allies | -11 -10 -10 -9 -9 -9 -------- Run | Yrd Mat Min Mat Sto Rec Total Allies 3 | . . . 1 2 . Largest Group 2 | . . . 1 2 . Highest-Rated Group 62 | . . . 10 62 . Highest-Rated Ally 31 | . . . 10 31 . Total Orders . | . . . . . . Ally Attacks 10 | . . . . 10 . Total Damage 147 | . . . . 147 . Kills 1 | . . . . 1 . Allies Corrupted . | . . . . . . Allies Melted . | . . . . . . Intel | -11 -10 -10 -9 -9 -9 ------- Run | Yrd Mat Min Mat Sto Rec Robot Analysis Total . | . . . . . . Derelict Logs Recovered 2 | . . 2 . . . Drone Launches . | . . . . . . Drone Recoveries . | . . . . . . Exploration | -11 -10 -10 -9 -9 -9 ------------- Run | Yrd Mat Min Mat Sto Rec Turns Passed 9173 | 140 2360 2019 1791 1110 1753 Spaces Moved 3237 | 61 874 643 583 372 704 Core 3 | 3 . . . . . Treads 3146 | 58 874 643 583 372 616 Legs . | . . . . . . Wheels 88 | . . . . . 88 Hover . | . . . . . . Flight . | . . . . . . Fastest Speed 50 | 50 160 240 240 240 145 Average Speed 219 | 154 178 240 240 240 228 Slowest Speed 240 | 160 240 240 240 240 240 Overloaded Moves . | . . . . . . Propulsion Burnouts . | . . . . . . Robots Hopped . | . . . . . . Cave-ins Triggered . | . . . . . . Exploration Rate (%) 65 | 5 99 98 45 49 99 Regions Visited 5 Branch Regions 3 Pre-discovered Areas 5 | . . 1 . . 4 Known Exits Taken 2 | . 1 . 1 . . Unknown Exits Taken 3 | 1 . 1 . 1 . Scrap Searched 1 | . . 1 . . . Spaces Dug 33 | . 17 . . 15 1 Terrain Destroyed 147 | . 79 5 . 62 1 Melee 2 | . . . . 2 . Projectile 2 | . . . . 1 1 AOE 143 | . 79 5 . 59 . Terrain Rammed . | . . . . . . Walls Destroyed . | . . . . . . Machines Disabled . | . . . . . . Actions | -11 -10 -10 -9 -9 -9 --------- Run | Yrd Mat Min Mat Sto Rec Total 4897 | 85 1544 1082 915 495 776 Wait 1257 | . 536 411 253 40 17 Move 3232 | 60 873 642 582 371 704 Hop . | . . . . . . Pick Up 49 | 7 21 2 13 3 3 Fast Attach 21 | 8 5 . 4 4 . Attach 9 | . . . 3 1 5 Detach 3 | 1 . . 1 1 . Swap 49 | . 19 5 7 16 2 Drop 54 | . 20 2 18 11 3 Fire 219 | 9 70 20 34 46 40 Melee 2 | . . . . 2 . Ram . | . . . . . . Kick . | . . . . . . Crush 2 | . . . . . 2 Escape Stasis . | . . . . . . Rewire . | . . . . . . Trap . | . . . . . . Miscellaneous . | . . . . . . Route ------- -11/Scrapyard -10/Materials (discovered 6 exits: *Mat x3 / *Min x2 / [*Sub]) -10/Mines (discovered 2 exits: *Mat x2) -9/Materials (discovered 4 exits: [*Mat] / Min x2 / *Sto) -9/Storage (discovered 2 exits: [*Mat] / *Rec) -9/Recycling (discovered 1 exit: [*Fac]) History --------- Turn | Location | Event 11 | -11/Scrapyard | Discovered new exit (range 15) 141 | -11/Scrapyard | Entered Materials 315 | -10/Materials | Build established: Mutant 522 | -10/Materials | Discovered new exit (range 9) 694 | -10/Materials | Discovered new exit (range 8) 841 | -10/Materials | Derelicts attacked the area 1231 | -10/Materials | Discovered new exit (range 6) 1397 | -10/Materials | Discovered new exit (range 12) 1463 | -10/Materials | Repaired Lgt. Treads 1698 | -10/Materials | Central database locked down 1732 | -10/Materials | Discovered new exit (range 7) 1786 | -10/Materials | Identified exit to Mines 1912 | -10/Materials | Discovered new exit (range 11) 2501 | -10/Materials | Entered Mines 2521 | -10/Mines | Assembled infested the area 2563 | -10/Mines | Met a Derelict bent on vengeance 3245 | -10/Mines | Received a Rocket Launcher from a helpful Derelict 3670 | -10/Mines | Discovered new exit (range 13) 3742 | -10/Mines | Learned location of 1 exit from Materials 3875 | -10/Mines | Learned location of Storage (-9) 4030 | -10/Mines | Learned 4 Materials zone layouts 4061 | -10/Mines | Found a damaged Exp. Sensor Array with a note attached 4066 | -10/Mines | Found Prototype Device 4089 | -10/Mines | Discovered new exit (range 7) 4520 | -10/Mines | Entered Materials 4520 | -9/Materials | Evolved 2 slots: Utility x2 4520 | -9/Materials | Discovered new exit (range 12) 4521 | -9/Materials | Identified exit to Mines 5001 | -9/Materials | Repaired Lgt. Treads 5028 | -9/Materials | Repaired Lgt. Treads 5075 | -9/Materials | Identified exit to Storage 5323 | -9/Materials | Identified Exp. Sensor Array 5683 | -9/Materials | Discovered new exit (range 8) 6311 | -9/Materials | Entered Storage 6361 | -9/Storage | Met a pair of Derelict thieves 6495 | -9/Storage | Destroyed 9 combat bots 6877 | -9/Storage | Used back door to open Recycling access 6877 | -9/Storage | Discovered new exit (range 3) 7113 | -9/Storage | Discovered new exit (range 14) 7421 | -9/Storage | Entered Recycling 7434 | -9/Recycling | Build established: Scavenger-Mutant 8816 | -9/Recycling | Discovered new exit (range 16) 8903 | -9/Recycling | Scanned before Scraplab entrance 8938 | -9/Recycling | Angered Scraplab inhabitants 8981 | -9/Recycling | Core integrity fell below 50% 9030 | -9/Recycling | Lost 6 parts (2n2u2w) 9174 | -9/Recycling | Self-destructed Last Messages --------------- 09007_ Acquired 51 matter. 09009_ Scrap Suit violently self-destructs. 09011_ QA-J5X(c) destroyed. 09020_ Destroyed Wheel. 09020_ PL-Q7F(c) knocked back. 09026_ Destroyed Wheel. 09026_ Destroyed Lgt. Ion Engine. 09029_ PL-Q7F(c) destroyed. 09032_ Acquired 56 matter. 09045_ Connecting with Scrap Engine Manual... 09073_ Acquired 5 matter. 09077_ Acquired 3 matter. 09105_ Acquired 24 matter. 09108_ Acquired 3 matter. 09111_ Acquired 5 matter. 09127_ Acquired 1 matter. 09157_ Tech Extrapolator violently self-destructs. 09158_ Scrap Suit violently self-destructs. 09159_ Acquired 63 matter. 09162_ Acquired Ovr. Titanium Leg. Map ----- +----------------------------------------------------+ | | | | | | | | | | | | | | | | | | | | | | | | | | | | | | | | | | | | | ?????????????????????????############???????? | | ?????????????????????????#"" " ""#"=#???????? | | ?????????????????????????# " ## #???????? | | ???????????????????####### #???????? | | ?????????????????### ="%* #???????? | | ?????????????????#" ##### % #???????? | | ?????????????????### #???# #???????? | | ???????????????????#@#???# & "& X #???????? | | ???????????????????# #???#"""""" #???????? | | ????????????????#####################???????? | | ????????????????# #???????????????????? | | ????????????????# #???????????????????? | | ????????????????# #???????????????????? | | ????????????????# #???????????????????? | | ????????????????####+####???????????????????? | | ???????????????????# #??????????????????????? | | ???????????????????# #??????????????????????? | | ???????????????##### #????????#####?????????? | | ???????????????#!!!# #????????#"""#?????????? | | ??????????###### !# ##########"Y"########?## | | ??????????# =![[ #?# | | ??????????# < !!!*= #?# | | ??????????# ! #?# | | ??????????######+##################### ### | | ????????????# #???????????????# ## | | ????????????# """ #???????????????# ### | | ????????????# "T" #?############### #?# | | ????????????# " " #?# = [ # #?# | | ????????????# #?# "Y"] + #?# | | ????????????# """ #?# """ # #### | | ????????????# """ #?# # | | ????????????# """ #?############### | +----------------------------------------------------+ Best States ------------- Heat Dissipation 72 Energy Generation 14 Energy Capacity 280 Matter Stores 300 Matter Capacity 300 Sight Range 16 Terrain Scan Density 10 Armor Coverage 225 Evasion (%) 40 Recoil Reduction 2 Item Schematics ----------------- Huge Storage Unit | -10/Materials | Hacked Exp. Sensor Array | -9/Materials | Scanalyzed Lgt. Armor Plating | -9/Materials | Scanalyzed Heat Sink | -9/Materials | Scanalyzed Robot Schematics ------------------ M-13 Machinist | -10/Materials | Hacked Fabricated ------------ Nothing Alien Tech Used ----------------- None Achievements -------------- None Challenges ------------ None Game ------ Seed GlidesysWeldingProjector Manual? 0 Play Time 00:38:16 Cumulative 181.7 hours Start 2024.11.09 @ 22:50:52 End 2024.11.09 @ 23:26:11 Sessions 1 Manual Loads 0 Difficulty Rogue Special Mode None Game No. 46 Rogue 45 Adventurer 1 Explorer 0 Win Type - Total 14 Types 4/3/4/0/0/0/3/0/0 Lore% 49 Gallery% 72 Achievement% 66 Wizard Run 0 Options --------- Layout 0 ASCII 0 Keyboard 0 Movement Mouse Keybinds 0 Fullscreen 1 Font 18/Terminus Map View 76x50 Zoom Use 0% Tactical HUD 1 Map Filters NONE Filters NONE Steam 0 RUN: e50e72b9-ffd4-4d84-be51-91f124047c24